lending/lending_fUSD_20240110
["ID","MTS","AMOUNT","RATE_DAILY","PERIOD"]
[311129536,1704927034228,-4002.437,0.00034383,2]
[311129537,1704927034237,-19668.0,0.00034383,2]
[311129538,1704927034247,-41885.0,0.00034383,2]
[311129539,1704927034256,-1303.577,0.00034383,2]
[311129540,1704927034266,-2264.0,0.00034383,2]
[311129541,1704927034275,-150.0,0.00034383,2]
[311129542,1704927034284,-333.40111,0.00034398,4]
[311129543,1704927034293,-32497.9173,0.00034419,2]
[311129544,1704927034303,-23762.0641,0.00034419,2]
[311129545,1704927034312,-1065.50439041,0.00034419,6]
[311129546,1704927034321,-207.6662766,0.0003442,23]
[311129547,1704927034330,-153.84,0.00034477,2]
[311129548,1704927034339,-151.0,0.00034511,7]
[311129549,1704927034348,-559.92447879,0.00034514,2]
[311129550,1704927034358,-511748.62341513,0.00034517,2]
[311129551,1704927034371,-6898.98334611,0.00034517,2]
[311129552,1704927034382,-5753.22699852,0.00034517,2]
[311129553,1704927034393,-2289.28608915,0.00034517,2]
[311129554,1704927034406,-974.19748854,0.00034517,2]
[311129555,1704927034426,-214.57988208,0.000321,2]
[311129556,1704927034435,-232486.63277473,0.00034517,2]
[311129557,1704927034447,-744.68149878,0.00034517,2]
[311129558,1704927034459,-3833.28649766,0.00034517,2]
[311129559,1704927034471,-374.57834887,0.00034517,2]
[311129560,1704927034482,-497.48514,0.00034517,2]
[311129561,1704927034495,-376.86,0.00034517,2]
[311129562,1704927034507,-439.53018558,0.00034517,2]
[311129563,1704927034518,-511.06796016,0.00034517,2]
[311129564,1704927034537,-3253.59417,0.00034517,2]
[311129565,1704927034549,-641.9811826,0.00034517,2]
[311129566,1704927034561,-6707.95466831,0.00034517,2]
[311129567,1704927034580,-17609.07849641,0.00034517,2]
[311129568,1704927034592,-432.256,0.00034517,2]
[311129569,1704927034603,-430.67499105,0.00034517,2]
[311129570,1704927034614,-823.70403487,0.00034517,2]
[311129571,1704927034626,-350.00592856,0.00034517,2]
[311129572,1704927034641,-2493.81602894,0.00034517,2]
[311129573,1704927034652,-110485.74176364,0.00034517,2]
[311129588,1704927038795,-219.95090379,0.00029097,2]
[311129590,1704927038804,-183.92055527,0.00029535,2]
[311129592,1704927038817,-21.07944473,0.00029535,2]
[311129595,1704927038827,-386.8689376,0.000321,2]
[311129596,1704927038842,-122.82805818,0.00032198,2]
[311129599,1704927038857,-46.65734332,0.00032198,2]
[311129601,1704927038866,-205.0,0.00033343,9]
[311129603,1704927038875,-1079.10915167,0.00034517,2]
[311129605,1704927038886,-13943.7736,0.00034517,2]
[311129607,1704927038897,-4206.31762752,0.00034517,2]
[311129611,1704927038916,-67990.4945993,0.00034517,2]
[311129613,1704927038928,-930.69768,0.00034517,2]
[311129615,1704927038939,-4702.12888289,0.00034517,2]
[311129617,1704927038951,-4450.4087247,0.00034517,2]
[311129619,1704927038962,-5816.380635,0.00034517,2]
[311129622,1704927038978,-508648.50106306,0.00034517,2]
[311129624,1704927038989,-417.74338871,0.00034517,2]
[311129627,1704927039003,-6689.07937615,0.00034517,2]
[311129629,1704927039012,-151.0,0.00034517,7]
[311129631,1704927039020,-151.0,0.00034517,7]
[311129633,1704927039030,-4130.90113051,0.00034517,2]
[311129635,1704927039041,-1042.0747437,0.00034517,2]
[311129637,1704927039056,-337.16451685,0.00034517,2]
[311129640,1704927039067,-540.4,0.00034517,2]
[311129642,1704927039078,-6998.6,0.00034517,2]
[311129644,1704927039089,-928.6,0.00034517,2]
[311129646,1704927039100,-468.50164004,0.00034517,2]
[311129648,1704927039111,-3923.54468742,0.00034517,2]
[311129652,1704927039134,-150.0,0.00034383,2]
[311129654,1704927039143,-22158.77676342,0.00034517,2]
[311129656,1704927039155,-1869.1110473,0.00034517,2]
[311129807,1704927040645,-500.0,0.00034517,2]
[311129809,1704927040657,-7954.63688046,0.00034517,2]
[311129818,1704927040726,-4638.0,0.00034517,2]
[311129820,1704927040737,-430.53631004,0.00034517,2]
[311129884,1704927041345,-9507.99426612,0.00034517,2]
[311129892,1704927041406,-835.90900002,0.00034517,2]
[311129894,1704927041417,-727.84599298,0.00034517,2]
[311129897,1704927041428,-1085.28967512,0.00034517,2]
[311129899,1704927041440,-4978.16417335,0.00034517,2]
[311129901,1704927041451,-744.18427935,0.00034517,2]
[311129906,1704927041485,-384.68814107,0.00034517,2]
[311129908,1704927041498,-57100.71188989,0.00034517,2]
[311129910,1704927041509,-1112.6698777,0.00034517,2]
[311129912,1704927041520,-17879.11843351,0.00034517,2]
[311130119,1704927043404,-12856.58258097,0.00034517,2]
[311130127,1704927043467,-993.77174201,0.00034517,2]
[311130134,1704927043531,-1397.827458,0.00034517,2]
[311130168,1704927043652,-11303.28444243,0.00034517,2]
[311130170,1704927043842,-3459.00041732,0.00034517,2]
[311130172,1704927043853,-3203.06460959,0.00034517,2]
[311130174,1704927043865,-3013.77416408,0.00034517,2]
[311130176,1704927043876,-4200.37352429,0.00034517,2]
[311130179,1704927043887,-684.03161158,0.00034517,2]
[311130181,1704927043898,-2429.4102933,0.00034517,2]
[311130183,1704927043909,-1973.5153802,0.00034517,2]
[311130185,1704927043924,-256.81548211,0.00034517,2]
[311130187,1704927043935,-5634.65703289,0.00034517,2]
[311130189,1704927043947,-16188.24772307,0.00034517,2]
[311130191,1704927043958,-665.88864,0.00034517,2]
[311130438,1704927046316,-2323.15,0.00034517,2]
[311130446,1704927046381,-20362.12890122,0.00034517,2]
[311130448,1704927046392,-515.40000015,0.00034517,2]
[311130451,1704927046403,-2550.8,0.00034517,2]
[311130457,1704927046451,-21780.50367145,0.00034517,2]
[311130459,1704927046460,-920.2824,0.0003452,2]
[311130461,1704927046470,-4502.96,0.00034521,2]
[311130463,1704927046479,-499.99,0.00034521,2]
[311130465,1704927046489,-221.26,0.00034544,2]
[311130467,1704927046499,-333.40111,0.00034598,4]
[311130469,1704927046509,-180.0,0.00034658,2]
[311130471,1704927046518,-1380.4236,0.00034794,2]
[311130473,1704927046527,-333.40111,0.00034798,4]
[311130475,1704927046537,-150.75147144,0.00034835,2]
[311130477,1704927046546,-484.86,0.00034856,2]
[311130479,1704927046555,-2423.86695099,0.000349,2]
[311130481,1704927046565,-2423.86695092,0.000349,2]
[311130483,1704927046574,-1065.50439037,0.00034917,7]
[311130485,1704927046583,-1840.5648,0.00034931,2]
[311130487,1704927046592,-155.0,0.0003497,2]
[311130489,1704927046602,-202.65506335,0.00034989,2]
[311130540,1704927047064,-250.0,0.00034171,2]
[311130542,1704927047073,-2515.77981581,0.00034989,2]
[311130544,1704927047082,-153.0,0.00034996,2]
[311130546,1704927047091,-153.0,0.00034996,2]
[311130548,1704927047101,-1576.72018419,0.00034996,4]
[311130550,1704927047112,-3691.151139,0.00034996,4]
[311130552,1704927047122,-500.0,0.00034999,4]
[311130554,1704927047131,-500.0,0.00034999,4]
[311130556,1704927047140,-627.98138165,0.00034999,4]
[311130558,1704927047149,-470.21168606,0.00034999,4]
[311130560,1704927047159,-359.75263552,0.00034999,4]
[311130562,1704927047168,-185.81235158,0.00034999,4]
[311130564,1704927047177,-1283.29080619,0.00035,2]
[311131368,1704927117266,500.0,0.000192,2]
[311131382,1704927204179,150.0,0.00022,2]
[311131385,1704927262722,639.87534942,0.00025,7]
[311131386,1704927263645,6287.62910243,0.00022,2]
[311131387,1704927266799,151.40111,0.00022501,2]
[311131388,1704927268468,151.40111,0.00022501,2]
[311131389,1704927269778,151.40111,0.00022501,2]
[311131390,1704927270275,151.40111,0.00022501,2]
[311131391,1704927270715,151.40111,0.00022501,2]
[311131392,1704927271214,151.40111,0.00022501,2]
[311131393,1704927271745,151.40111,0.00022501,2]
[311131394,1704927271862,151.40111,0.00022501,2]
[311131395,1704927272303,151.40111,0.00022501,2]
[311131396,1704927272423,150.0,0.00021547,2]
[311131397,1704927272771,151.40111,0.00022501,2]
[311131398,1704927273255,151.40111,0.00022501,2]
[311131399,1704927273744,151.40111,0.00022501,2]
[311131400,1704927274399,151.40111,0.00022501,2]
[311131401,1704927274702,151.40111,0.00022501,2]
[311131402,1704927275220,151.40111,0.00022501,2]
[311131403,1704927275740,151.40111,0.00022501,2]
[311131404,1704927276245,151.40111,0.00022501,2]
[311131405,1704927276769,151.40111,0.00022501,2]
[311131406,1704927277226,151.40111,0.00022501,2]
[311131407,1704927277738,151.40111,0.00022501,2]
[311131408,1704927278199,151.40111,0.00022501,2]
[311131409,1704927278693,151.40111,0.00022501,2]
[311131410,1704927279328,151.40111,0.00022501,2]
[311131411,1704927279696,151.40111,0.00022501,2]
[311131412,1704927280165,151.40111,0.00022501,2]
[311131413,1704927280668,151.40111,0.00022501,2]
[311131414,1704927281151,151.40111,0.00022501,2]
[311131415,1704927281656,151.40111,0.00022501,2]
[311131416,1704927282338,151.40111,0.00022501,2]
[311131417,1704927282665,151.40111,0.00022501,2]
[311131418,1704927283136,151.40111,0.00022501,2]
[311131419,1704927283636,151.40111,0.00022501,2]
[311131420,1704927284275,151.40111,0.00022501,2]
[311131421,1704927284611,151.40111,0.00022501,2]
[311131422,1704927285114,151.40111,0.00022501,2]
[311131423,1704927285611,151.40111,0.00022501,2]
[311131424,1704927286152,151.40111,0.00022501,2]
[311131425,1704927286604,151.40111,0.00022501,2]
[311131426,1704927287120,151.40111,0.00022501,2]
[311131427,1704927287603,151.40111,0.00022501,2]
[311131428,1704927288123,151.40111,0.00022501,2]
[311131429,1704927288802,151.40111,0.00022501,2]
[311131430,1704927289246,151.40111,0.00022501,2]
[311131431,1704927289704,151.40111,0.00022501,2]
[311131432,1704927290381,151.40111,0.00022501,2]
[311131433,1704927290552,151.40111,0.00022501,2]
[311131434,1704927291057,151.40111,0.00022501,2]
[311131435,1704927291534,151.40111,0.00022501,2]
[311131436,1704927292015,151.40111,0.00022501,2]
[311131437,1704927292458,151.40111,0.00022501,2]
[311131438,1704927292942,151.40111,0.00022501,2]
[311131439,1704927293399,151.40111,0.00022501,2]
[311131440,1704927293862,151.40111,0.00022501,2]
[311131441,1704927294317,151.40111,0.00022501,2]
[311131442,1704927294780,151.40111,0.00022501,2]
[311131443,1704927295258,151.40111,0.00022501,2]
[311131444,1704927295744,151.40111,0.00022501,2]
[311131445,1704927296274,151.40111,0.00022501,2]
[311131446,1704927296782,151.40111,0.00022501,2]
[311131447,1704927297558,151.40111,0.00022501,2]
[311131448,1704927297777,151.40111,0.00022501,2]
[311131449,1704927298288,151.40111,0.00022501,2]
[311131450,1704927298795,151.40111,0.00022501,2]
[311131451,1704927299430,151.40111,0.00022501,2]
[311131452,1704927299775,151.40111,0.00022501,2]
[311131453,1704927300277,151.40111,0.00022501,2]
[311131454,1704927300751,151.40111,0.00022501,2]
[311131455,1704927327151,800.71758024,0.00022448,2]
[311131458,1704927630868,454.7456,0.00022447,2]
[311131459,1704927649563,291.6,0.00022999,7]
[311131460,1704927686626,1671.3956,0.00022447,2]
[311131463,1704927846539,198.86,0.00023568,10]
[311131465,1704927920759,2458.203,0.00022447,2]
[311131466,1704927958169,161.47858851,0.00022423,2]
[311131470,1704928029097,-3323.78268181,0.00022518,2]
[311131471,1704928029118,-246.75786482,0.00022518,2]
[311131472,1704928029139,-1000.0,0.00022519,2]
[311131473,1704928029158,-150.0,0.00022521,2]
[311131474,1704928029178,-10539.87918449,0.00022529,2]
[311131475,1704928029197,-3522.31932892,0.00022532,2]
[311131476,1704928029217,-2090.22508608,0.00022545,2]
[311131477,1704928029239,-362.69602304,0.00022545,2]
[311131478,1704928029261,-1451.42969647,0.00022545,2]
[311131479,1704928029286,-3085.08198545,0.00022799,2]
[311131480,1704928042102,-181.77801974,0.00022799,2]
[311131481,1704928052062,1000.0,0.0002221,2]
[311131482,1704928052097,-248.51130283,0.00022668,2]
[311131483,1704928052117,-1166.63009481,0.00022799,2]
[311131484,1704928052137,-283.69069958,0.000228,2]
[311131485,1704928052156,-380.77500368,0.000228,2]
[311131486,1704928052175,-616.24009923,0.000228,2]
[311131487,1704928052196,-616.24009922,0.0002285,2]
[311131488,1704928052220,-580.93784065,0.00022897,2]
[311131489,1704928052239,-701.92899337,0.00022897,2]
[311131490,1704928052262,-3301.94658733,0.00022897,2]
[311131491,1704928052280,-4604.00022712,0.00022898,2]
[311131492,1704928052302,-80934.55648859,0.00022899,2]
[311131493,1704928070748,1000.0,0.00022211,2]
[311131494,1704928096431,327.8738,0.0002242,2]
[311131495,1704928156122,-205.41336642,0.000228,2]
[311131496,1704928156141,-205.4133664,0.0002285,2]
[311131497,1704928156161,-150.0,0.00022898,2]
[311131498,1704928156182,-100871.80326718,0.00022899,2]
[311131499,1704928158573,150.0,0.00022,2]
[311131501,1704928171148,-150.0,0.00022548,2]
[311131502,1704928171170,-55151.75649457,0.00022899,2]
[311131546,1704928233699,-12664.61507924,0.00022899,2]
[311131547,1704928233711,-1458.80697684,0.00022899,2]
[311131548,1704928233723,-866.30438943,0.00022899,2]
[311131549,1704928233766,-3768.53366605,0.00022899,2]
[311131550,1704928233778,-2018.82167014,0.00022899,2]
[311131551,1704928233789,-27412.14606947,0.00022899,2]
[311131552,1704928233799,-1000.0,0.000229,2]
[311131553,1704928233809,-25399.0606,0.000229,2]
[311131554,1704928233817,-500.0,0.000229,2]
[311131555,1704928233827,-248.47,0.000229,2]
[311131556,1704928233836,-205.4133664,0.000229,2]
[311131557,1704928233845,-185.21540496,0.000229,2]
[311131558,1704928233855,-165.45,0.00022915,2]
[311131559,1704928233864,-211.22932007,0.0002299,2]
[311131560,1704928233874,-4272.91366483,0.00022999,2]
[311131561,1704928233883,-770085.85344262,0.00023,2]
[311131562,1704928233893,-499.99,0.00023,2]
[311131563,1704928233905,-250.0,0.00023018,2]
[311131564,1704928233916,-166.08,0.00023169,2]
[311131565,1704928233926,-516.7,0.0002319,2]
[311131566,1704928233935,-14886.0,0.00023292,2]
[311131567,1704928233946,-199.74,0.00023735,2]
[311131568,1704928233955,-211.91,0.00024161,2]
[311131569,1704928233965,-167.0,0.00024297,2]
[311131570,1704928233974,-1000.0,0.000246,2]
[311131571,1704928233984,-284.49,0.00024658,4]
[311131572,1704928233994,-706.1713055,0.00025,2]
[311131573,1704928234004,-350.0,0.00025,3]
[311131574,1704928234013,-283.69069953,0.00025165,2]
[311131575,1704928234023,-210.0,0.00025188,2]
[311131576,1704928234032,-245.92,0.00025212,2]
[311131577,1704928234041,-600.0,0.00025212,2]
[311131579,1704928234051,-250.0,0.00025212,2]
[311131581,1704928234060,-151.38,0.00025402,2]
[311131583,1704928234069,-516.7,0.00025454,2]
[311131586,1704928234079,-499.9,0.000255,2]
[311131589,1704928234087,-157.71,0.00025545,2]
[311131592,1704928234097,-1000.0,0.000256,2]
[311131595,1704928234107,-151.38,0.00026063,2]
[311131598,1704928234116,-150.0,0.00026079,2]
[311131601,1704928234126,-245.92,0.00026191,2]
[311131604,1704928234135,-157.71,0.00026397,2]
[311131607,1704928234144,-205.0,0.00026535,2]
[311131610,1704928234155,-4007.86,0.00026575,2]
[311131613,1704928234164,-1000.0,0.000266,2]
[311131616,1704928234173,-151.38,0.00026725,2]
[311131619,1704928234182,-211.91,0.000269,2]
[311131622,1704928234192,-400.0,0.00027,3]
[311131625,1704928234202,-245.92,0.00027169,2]
[311131628,1704928234212,-157.71,0.00027248,2]
[311131631,1704928234221,-250.0,0.00027397,2]
[311131633,1704928234230,-500.0,0.000274,2]
[311131635,1704928234239,-283.27,0.000274,2]
[311131637,1704928234248,-283.27,0.000274,2]
[311131639,1704928234257,-283.27,0.000274,2]
[311131641,1704928234266,-283.27,0.000274,2]
[311131643,1704928234275,-283.69069953,0.00027529,3]
[311131645,1704928234284,-1000.0,0.000276,2]
[311131647,1704928234293,-358.94050544,0.00027613,2]
[311131649,1704928234301,-516.7,0.00027718,2]
[311131651,1704928234310,-229.78,0.00027819,2]
[311131653,1704928234319,-2000.0,0.00027956,2]
[311131655,1704928234331,-202.37166154,0.00028,2]
[311131656,1704928234340,-157.71,0.000281,2]
[311131658,1704928234350,-245.92,0.00028148,2]
[311131660,1704928234360,-600.0,0.00028364,2]
[311131662,1704928234371,-1000.0,0.000286,2]
[311131664,1704928234379,-161.47858851,0.00028748,2]
[311131666,1704928234389,-7879.36188141,0.00029,15]
[311131667,1704928234401,-450.0,0.00029,3]
[311131668,1704928234411,-245.92,0.00029126,2]
[311131669,1704928234420,-214.56,0.0002933,2]
[311131670,1704928234429,-1000.0,0.000296,2]
[311131671,1704928234439,-6039.00162918,0.000298,2]
[311131672,1704928234448,-283.69069953,0.00029894,4]
[311131673,1704928234458,-516.7,0.00029982,2]
[311131674,1704928234467,-155.0,0.0003,2]
[311131675,1704928234476,-23290.20777229,0.0003,4]
[311131676,1704928234488,-20349.40590604,0.0003,4]
[311131677,1704928234498,-245.92,0.00030105,2]
[311131678,1704928234507,-153.84,0.00030137,2]
[311131679,1704928234516,-1000.0,0.000306,2]
[311131680,1704928234527,-887.9203254,0.00030886,2]
[311131681,1704928234699,-150.94858354,0.000309,2]
[311131682,1704928234713,-150.94858298,0.000309,2]
[311131683,1704928234722,-150.94858298,0.000309,2]
[311131684,1704928234731,-150.94858298,0.000309,2]
[311131685,1704928234741,-150.94858298,0.000309,2]
[311131686,1704928234750,-150.94858298,0.000309,2]
[311131687,1704928234759,-150.94858298,0.000309,2]
[311131688,1704928234769,-150.94858298,0.000309,2]
[311131689,1704928234778,-150.94858298,0.000309,2]
[311131690,1704928234787,-150.94858298,0.000309,2]
[311131691,1704928234796,-150.94858298,0.000309,2]
[311131692,1704928234805,-150.94858298,0.000309,2]
[311131693,1704928234814,-150.94858298,0.000309,2]
[311131694,1704928234823,-800.0,0.00030986,2]
[311131695,1704928234834,-500.0,0.00031,3]
[311131696,1704928234844,-223.38,0.00031,2]
[311131697,1704928234853,-150.94858298,0.0003101,2]
[311131698,1704928234863,-153.84,0.0003105,2]
[311131699,1704928234872,-245.92,0.00031083,2]
[311131700,1704928234881,-205.0,0.00031316,10]
[311131701,1704928234891,-400.0,0.0003135,2]
[311131702,1704928234900,-170.95,0.00031415,2]
[311131703,1704928234909,-2881.0,0.000315,2]
[311131704,1704928234919,-18334.0,0.000315,2]
[311131705,1704928234928,-191.4,0.00031507,2]
[311131706,1704928234937,-174.0,0.0003151,2]
[311131707,1704928234946,-600.0,0.00031516,2]
[311131708,1704928234955,-439.40111,0.00031598,2]
[311131709,1704928234964,-1000.0,0.000316,2]
[311131710,1704928234973,-150.94858298,0.00031633,2]
[311131711,1704928234983,-887.9203253,0.00031669,3]
[311131712,1704928234992,-333.40111,0.00031798,2]
[311131713,1704928235001,-333.40111,0.00031898,2]
[311131714,1704928235011,-153.84,0.00031963,2]
[311131715,1704928235020,-333.40111,0.00031998,2]
[311131716,1704928235030,-155.09782888,0.00032,2]
[311131717,1704928235040,-3000.0,0.00032,2]
[311131718,1704928235050,-3000.0,0.0003201,2]
[311131719,1704928235059,-3000.0,0.0003202,2]
[311131720,1704928235070,-3000.0,0.0003203,2]
[311131721,1704928235081,-3000.0,0.0003204,2]
[311131722,1704928235091,-3000.0,0.0003205,2]
[311131723,1704928235101,-3000.0,0.0003206,2]
[311131724,1704928235111,-245.92,0.00032062,2]
[311131725,1704928235121,-3000.0,0.0003207,2]
[311131726,1704928235131,-3000.0,0.0003208,2]
[311131727,1704928235140,-3000.0,0.0003209,2]
[311131728,1704928235151,-333.40111,0.00032098,2]
[311131729,1704928235161,-500.0,0.000321,2]
[311131730,1704928235170,-3000.0,0.000321,2]
[311131731,1704928235180,-3000.0,0.0003211,2]
[311131732,1704928235189,-3000.0,0.0003212,2]
[311131733,1704928235199,-3000.0,0.0003213,2]
[311131734,1704928235208,-283.27,0.0003213,2]
[311131735,1704928235218,-4238.231432,0.0003214,2]
[311131736,1704928235228,-333.40111,0.00032198,2]
[311131737,1704928235237,-516.7,0.00032246,2]
[311131738,1704928235247,-150.94858298,0.00032257,2]
[311131739,1704928235256,-283.69069953,0.00032258,5]
[311131740,1704928235266,-333.40111,0.00032398,2]
[311131741,1704928235275,-887.9203253,0.00032452,4]
[311131742,1704928235285,-333.40111,0.00032598,2]
[311131743,1704928235294,-1000.0,0.000326,2]
[311131744,1704928235303,-1379.21,0.00032726,2]
[311131745,1704928235312,-333.40111,0.00032798,2]
[311131746,1704928235322,-168.18,0.00032802,2]
[311131747,1704928235332,-153.84,0.00032877,2]
[311131748,1704928235341,-292.39,0.00032877,15]
[311131749,1704928235351,-150.94858298,0.00032881,2]
[311131750,1704928235360,-500.0,0.000329,2]
[311131751,1704928235370,-333.40111,0.00032998,2]
[311131752,1704928235381,-550.0,0.00033,3]
[311131753,1704928235391,-245.92,0.0003304,2]
[311131754,1704928235401,-1577.35883959,0.00033135,2]
[311131755,1704928235411,-333.40111,0.00033198,2]
[311131756,1704928235420,-887.9203253,0.00033235,5]
[311131757,1704928235430,-333.40111,0.00033398,2]
[311131758,1704928235441,-3287.21612338,0.00033444,4]
[311131759,1704928235451,-2153.66092455,0.000335,10]
[311131760,1704928235461,-150.94858298,0.00033505,2]
[311131761,1704928235471,-152.0,0.00033553,3]
[311131762,1704928235482,-333.40111,0.00033598,2]
[311131763,1704928235492,-1000.0,0.000336,2]
[311131764,1704928235502,-153.14,0.00033712,2]
[311131765,1704928235513,-153.84,0.0003379,2]
[311131766,1704928235523,-333.40111,0.00033798,2]
[311131767,1704928235533,-153.14,0.00033993,2]
[311131768,1704928235543,-333.40111,0.00033998,4]
[311131769,1704928235553,-201.60552897,0.00034,2]
[311131770,1704928235564,-1000.0,0.00034,4]
[311131771,1704928235574,-13150.89299749,0.00034,2]
[311131772,1704928235583,-155.0,0.00034,2]
[311131773,1704928235594,-887.9203253,0.00034018,6]
[311131774,1704928235603,-245.92,0.00034019,2]
[311131775,1704928235613,-150.94858298,0.00034129,2]
[311131776,1704928235623,-333.40111,0.00034198,4]
[311131777,1704928235632,-153.14,0.00034274,2]
[311131778,1704928235642,-1302.67467729,0.00034285,2]
[311131779,1704928235653,-235.0,0.00034328,2]
[311131780,1704928235663,-168.18,0.00034345,2]
[311131781,1704928235673,-16304.373,0.00034373,2]
[311131782,1704928235683,-1354.0,0.00034383,2]
[311131783,1704928235692,-834.0,0.00034383,2]
[311131784,1704928235702,-944.0,0.00034383,2]
[311131785,1704928235711,-1850.0,0.00034383,2]
[311131786,1704928235721,-1234.0,0.00034383,2]
[311131787,1704928235730,-1251.0,0.00034383,2]
[311131788,1704928235740,-333.40111,0.00034398,4]
[311131789,1704928235749,-516.7,0.0003451,2]
[311131790,1704928235759,-41512.49593101,0.00034516,2]
[311131791,1704928235768,-3701.82,0.00034521,2]
[311131792,1704928235779,-198.02686784,0.00034541,2]
[311131793,1704928235788,-392.66835404,0.00034542,4]
[311131794,1704928235798,-2548.35015776,0.00034542,4]
[311131795,1704928235809,-201.30584594,0.00034542,4]
[311131796,1704928235818,-1032.6534006,0.00034542,4]
[311131797,1704928235828,-181.11470642,0.00034543,4]
[311131798,1704928235837,-153.14,0.00034555,2]
[311131799,1704928235847,-1302.67467729,0.00034572,2]
[311131800,1704928235857,-333.40111,0.00034598,4]
[311131801,1704928235867,-1000.0,0.000346,2]
[311131802,1704928235876,-283.69069953,0.00034623,7]
[311131803,1704928235886,-151.0,0.00034646,7]
[311131804,1704928235895,-180.0,0.00034658,2]
[311131805,1704928235905,-600.0,0.00034667,2]
[311131806,1704928235915,-153.84,0.00034703,2]
[311131807,1704928235924,-150.94858298,0.00034752,2]
[311131808,1704928235934,-333.40111,0.00034798,4]
[311131809,1704928235944,-887.9203253,0.00034801,7]
[311131810,1704928235953,-153.14,0.00034836,2]
[311131811,1704928235962,-2351.84474485,0.000349,2]
[311131812,1704928235972,-2351.84474478,0.000349,2]
[311131813,1704928235982,-2351.84474478,0.000349,2]
[311131814,1704928235991,-2351.84474478,0.000349,2]
[311131815,1704928236000,-2351.84474478,0.000349,2]
[311131816,1704928236009,-2351.84474478,0.000349,2]
[311131817,1704928236018,-2351.84474478,0.000349,2]
[311131818,1704928236027,-2351.84474478,0.000349,2]
[311131819,1704928236037,-283.27,0.00034989,2]
[311131820,1704928236047,-283.27,0.0003499,2]
[311131821,1704928236058,-245.92,0.00034997,2]
[311131822,1704928236067,-310.12290854,0.00034998,4]
[311131823,1704928236077,-333.40111,0.00034998,4]
[311131824,1704928236087,-155.0,0.00034999,4]
[311131825,1704928236096,-349.535,0.00034999,4]
[311131826,1704928236106,-103458.89681794,0.00034999,2]
[311131827,1704928236115,-353.83966151,0.00034999,4]
[311131828,1704928236126,-98716.70919381,0.00035,2]
[311131829,1704928236135,-100000.0,0.00035,2]
[311131830,1704928236145,-16417.45689362,0.00035,2]
[311131831,1704928236157,-14458.51901613,0.00035,2]
[311131832,1704928236166,-34492.34690794,0.00035,2]
[311131833,1704928236176,-4633.23968644,0.00035,2]
[311131834,1704928236186,-600.0,0.00035,3]
[311131835,1704928236196,-168.19423,0.00035,2]
[311131836,1704928236206,-2300.706,0.00035068,2]
[311131837,1704928236216,-161.47858851,0.00035073,2]
[311131838,1704928236227,-333.40111,0.00035098,4]
[311131839,1704928236237,-153.14,0.00035117,2]
[311131840,1704928236246,-283.27,0.00035163,2]
[311131841,1704928236255,-311.06915488,0.0003517,2]
[311131842,1704928236264,-16336.3401027,0.00035173,10]
[311131843,1704928236273,-2069.66801642,0.00035173,10]
[311131844,1704928236283,-59799.17604967,0.00035173,10]
[311131845,1704928236292,-3559.11416827,0.00035173,10]
[311131846,1704928236302,-5096.61158985,0.00035173,10]
[311131847,1704928236311,-12387.67068273,0.00035173,10]
[311131848,1704928236323,-333.40111,0.00035198,6]
[311131849,1704928236334,-1373.84217271,0.0003521,2]
[311131850,1704928236343,-400.0,0.00035268,2]
[311131851,1704928236352,-333.40111,0.00035298,4]
[311131852,1704928236363,-1302.67467729,0.00035307,2]
[311131853,1704928236372,-3220.9884,0.00035342,2]
[311131854,1704928236381,-151.0,0.00035353,4]